bitfinex-derivatives/quotes_BNBF0:USTF0_20250710
["timestamp","ask_amount","ask_price","bid_price","bid_amount"]
[1752145534044,0.96861709,670.26,669.62,2.23215321]
[1752145534247,0.96861709,670.25,669.62,2.23215321]
[1752145534445,0.96861709,670.24,669.62,2.23215321]
[1752145534748,0.96861709,670.23,669.62,2.23215321]
[1752145534948,0.96861709,670.27,669.62,2.23215321]
[1752145535148,0.96861709,670.26,669.62,2.23215321]
[1752145535349,0.96861709,670.25,669.64,2.23215321]
[1752145535546,0.96861709,670.24,669.64,2.23215321]
[1752145535844,0.96861709,670.23,669.64,2.23215321]
[1752145536047,0.96861709,670.26,669.64,2.23215321]
[1752145536250,0.96861709,670.25,669.64,2.23215321]
[1752145536550,0.96861709,670.24,669.64,2.23215321]
[1752145536750,0.96861709,670.23,669.64,2.23215321]
[1752145537050,0.96861709,670.26,669.65,2.23215321]
[1752145537251,0.96861709,670.25,669.65,2.23215321]
[1752145537551,0.96861709,670.24,669.65,2.23215321]
[1752145537752,0.96861709,670.23,669.65,2.23215321]
[1752145537952,0.96861709,670.26,669.65,2.23215321]
[1752145538251,0.96861709,670.26,669.64,2.23215321]
[1752145540059,1.67630412,670.27,669.64,2.23215321]
[1752145540356,1.67630412,670.27,669.65,2.23215321]
[1752145540654,0.96861709,670.26,669.65,2.23215321]
[1752145540858,0.96861709,670.26,669.67,2.23215321]
[1752145541060,1.67630412,670.3,669.67,2.23215321]
[1752145541258,0.96861709,670.29,669.68,2.23215321]
[1752145541458,0.96861709,670.28,669.68,2.23215321]
[1752145541657,0.96861709,670.27,669.68,2.23215321]
[1752145541857,1.67630412,670.36,669.55,2.23215321]
[1752145542255,1.67630412,670.36,669.54,2.23215321]
[1752145543063,1.67630412,670.38,669.51,4.75115321]
[1752145547467,0.25971312,670.39,669.58,2.23215321]
[1752145549169,0.25971312,670.39,669.57,2.23215321]
[1752145551775,0.25971312,670.39,669.61,2.23215321]
[1752145552171,0.25971312,670.39,669.62,2.23215321]
[1752145552773,0.25971312,670.39,669.67,2.23215321]
[1752145554375,0.25971312,670.39,669.68,2.23215321]
[1752145555076,0.25971312,670.39,669.69,2.23215321]
[1752145555872,0.25971312,670.39,669.71,2.23215321]
[1752145556875,1.67357402,670.41,669.71,2.23215321]
[1752145558378,1.67357402,670.4,669.72,2.23215321]
[1752145560376,1.67357402,670.41,669.7,2.23215321]
[1752145560576,1.67357402,670.4,669.72,2.23215321]
[1752145562280,1.67357402,670.41,669.71,2.23215321]
[1752145562477,1.67357402,670.41,669.72,2.23215321]
[1752145562781,1.67357402,670.4,669.72,2.23215321]
[1752145562980,1.67357402,670.44,669.62,2.23215321]
[1752145563480,1.67357402,670.45,669.62,2.23215321]
[1752145563874,1.67357402,670.47,669.64,2.23215321]
[1752145564079,0.96861709,670.46,669.64,2.23215321]
[1752145564278,0.96737531,670.45,669.63,2.23215321]
[1752145564576,0.96737531,670.46,669.63,2.23215321]
[1752145564780,0.96737531,670.45,669.63,2.23215321]
[1752145564980,0.96737531,670.46,669.63,2.23215321]
[1752145565176,1.67357402,670.47,669.51,2.519]
[1752145565177,1.67357402,670.48,669.6,2.23215321]
[1752145565377,0.96737531,670.47,669.6,2.23215321]
[1752145566878,1.67357402,670.48,669.6,2.23215321]
[1752145567380,1.67357402,670.48,669.59,2.23215321]
[1752145567781,2.64094933,670.48,669.59,2.23215321]
[1752145567979,1.67357402,670.48,669.59,2.23215321]
[1752145568381,1.67357402,670.49,669.59,2.23215321]
[1752145568580,0.96737531,670.48,669.59,2.23215321]
[1752145570080,2.64094933,670.48,669.59,2.23215321]
[1752145570384,1.67357402,670.48,669.6,2.23215321]
[1752145571378,2.64100951,670.48,669.6,2.23215321]
[1752145571579,1.67357402,670.48,669.6,2.23215321]
[1752145572484,2.64100951,670.48,669.6,2.23215321]
[1752145572684,0.96743549,670.47,669.6,2.23215321]
[1752145572880,0.96743549,670.46,669.64,2.23215321]
[1752145573081,1.67357402,670.47,669.64,2.23215321]
[1752145573281,0.96751714,670.46,669.64,2.23215321]
[1752145573786,2.64109116,670.46,669.64,2.23215321]
[1752145574084,0.96751714,670.45,669.64,2.23215321]
[1752145574585,0.96751714,670.46,669.64,2.23215321]
[1752145574780,0.96751714,670.45,669.64,2.23215321]
[1752145574985,2.64109116,670.44,669.7,2.23215321]
[1752145575284,0.96751714,670.43,669.7,2.23215321]
[1752145575780,0.96751714,670.43,669.71,2.23215321]
[1752145576184,0.96756307,670.42,669.71,2.23215321]
[1752145576381,0.96756307,670.43,669.71,2.23215321]
[1752145576586,0.96756307,670.43,669.69,2.23215321]
[1752145577186,0.96756307,670.42,669.71,2.23215321]
[1752145577386,0.96756307,670.43,669.71,2.23215321]
[1752145577586,0.96756307,670.42,669.72,2.23215321]
[1752145577787,0.96756307,670.42,669.71,2.23215321]
[1752145578082,0.96756307,670.43,669.71,2.23215321]
[1752145578286,0.96756307,670.42,669.71,2.23215321]
[1752145578487,0.96756307,670.43,669.71,2.23215321]
[1752145578684,0.96756307,670.42,669.71,2.23215321]
[1752145578887,0.96756307,670.43,669.71,2.23215321]
[1752145579088,0.96765835,670.42,669.71,2.23215321]
[1752145579288,0.96765835,670.43,669.69,2.23215321]
[1752145580087,0.96765835,670.42,669.69,2.23215321]
[1752145580286,0.96765835,670.43,669.69,2.23215321]
[1752145580485,0.96765835,670.42,669.69,2.23215321]
[1752145580689,0.96765835,670.43,669.69,2.23215321]
[1752145580887,0.96765835,670.42,669.69,2.23215321]
[1752145581093,0.96765835,670.43,669.7,2.23215321]
[1752145581290,0.96765835,670.42,669.72,2.23215321]
[1752145581493,0.96765835,670.41,669.72,2.23215321]
[1752145581693,0.96765835,670.42,669.71,2.23215321]
[1752145581892,0.96765835,670.41,669.71,2.23215321]
[1752145582091,0.96775716,670.42,669.72,2.23215321]
[1752145582293,0.96775716,670.41,669.72,2.23215321]
[1752145582488,0.96775716,670.42,669.68,2.23215321]
[1752145582791,0.96775716,670.44,669.68,2.23215321]
[1752145582988,0.96775716,670.43,669.68,2.23215321]
[1752145583188,0.96775716,670.42,669.68,2.23215321]
[1752145583389,0.96775716,670.44,669.68,2.23215321]
[1752145583589,0.96775716,670.43,669.68,2.23215321]
[1752145583788,0.96775716,670.42,669.68,2.23215321]
[1752145583993,0.96775716,670.44,669.68,2.23215321]
[1752145584190,0.96775716,670.43,669.69,2.23215321]
[1752145584395,0.96775716,670.42,669.69,2.23215321]
[1752145584595,0.96775716,670.41,669.68,2.23215321]
[1752145584793,0.96775716,670.43,669.69,2.23215321]
[1752145584992,1.67357402,670.49,669.73,2.23215321]
[1752145585195,0.96775716,670.48,669.73,2.23215321]
[1752145585393,0.96775716,670.47,669.73,2.23215321]
[1752145585592,0.96775716,670.46,669.73,2.23215321]
[1752145585891,0.96775716,670.48,669.73,2.23215321]
[1752145586096,0.96775716,670.47,669.73,2.23215321]
[1752145586303,0.96775716,670.46,669.73,2.23215321]
[1752145586495,0.96775716,670.45,669.73,2.23215321]
[1752145586693,0.96775716,670.48,669.73,2.23215321]
[1752145586892,0.96775716,670.47,669.73,2.23215321]
[1752145587091,0.96775716,670.46,669.73,2.23215321]
[1752145587293,0.96775716,670.45,669.73,2.23215321]
[1752145587595,0.96775716,670.48,669.73,2.23215321]
[1752145587793,0.96775716,670.47,669.74,2.23215321]
[1752145587995,0.96775716,670.48,669.7,2.23215321]
[1752145588194,0.96775716,670.47,669.7,2.23215321]
[1752145588393,0.96775716,670.5,669.7,2.23215321]
[1752145588592,0.96775716,670.49,669.7,2.23215321]
[1752145588797,0.96775716,670.48,669.7,2.23215321]
[1752145588994,0.96775716,670.47,669.7,2.23215321]
[1752145589297,0.96775716,670.46,669.7,2.23215321]
[1752145589597,0.96775716,670.5,669.7,2.23215321]
[1752145589794,0.96775716,670.49,669.7,2.23215321]
[1752145590096,0.96775716,670.48,669.7,2.23215321]
[1752145590394,0.96775716,670.47,669.69,2.23215321]
[1752145590593,0.96775716,670.46,669.69,2.23215321]
[1752145590795,0.96775716,670.5,669.69,2.23215321]
[1752145590995,0.96775716,670.49,669.69,2.23215321]
[1752145591194,0.96775716,670.48,669.69,2.23215321]
[1752145591394,0.96775716,670.47,669.69,2.23215321]
[1752145591592,0.96775716,670.46,669.69,2.23215321]
[1752145591795,0.96837213,670.5,669.69,2.23215321]
[1752145592094,0.96837213,670.49,669.69,2.23215321]
[1752145592399,0.96837213,670.48,669.71,2.23215321]
[1752145592599,0.96837213,670.47,669.71,2.23215321]
[1752145592798,0.96837213,670.46,669.71,2.23215321]
[1752145593096,0.96837213,670.45,669.71,2.23215321]
[1752145593299,0.96837213,670.44,669.71,2.23215321]
[1752145593499,0.96837213,670.49,669.71,2.23215321]
[1752145593695,0.96837213,670.48,669.71,2.23215321]
[1752145593894,0.96848164,670.47,669.71,2.23215321]
[1752145594097,0.96848164,670.46,669.72,2.23215321]
[1752145594296,0.96848164,670.45,669.72,2.23215321]
[1752145594496,0.96848164,670.44,669.72,2.23215321]
[1752145594697,0.96848164,670.43,669.72,2.23215321]
[1752145594894,0.96848164,670.48,669.72,2.23215321]
[1752145595098,0.96848164,670.47,669.72,2.23215321]
[1752145595299,0.96848164,670.46,669.72,2.23215321]
[1752145595496,0.96848164,670.45,669.72,2.23215321]
[1752145595797,0.96848164,670.44,669.72,2.23215321]
[1752145596096,0.96848164,670.43,669.72,2.23215321]
[1752145596401,0.96848164,670.42,669.72,2.23215321]
[1752145596600,0.96848164,670.48,669.72,2.23215321]
[1752145596794,0.96848164,670.47,669.72,2.23215321]
[1752145596998,0.96873098,670.46,669.72,2.23215321]
[1752145597195,0.96873098,670.45,669.73,2.23215321]
[1752145597496,0.96873098,670.44,669.73,2.23215321]
[1752145597697,0.96873098,670.43,669.73,2.23215321]
[1752145597900,0.96873098,670.42,669.78,2.23215321]
[1752145598103,0.96873098,670.41,669.78,2.23215321]
[1752145598301,0.96873098,670.4,669.78,2.23215321]
[1752145598501,0.96873098,670.39,669.78,2.23215321]
[1752145598803,0.96873098,670.45,669.78,2.23215321]
[1752145599103,0.96873098,670.44,669.78,2.23215321]
[1752145599396,0.96873098,670.43,669.79,2.23215321]
[1752145599601,0.96873098,670.42,669.79,2.23215321]
[1752145599801,0.96873098,670.41,669.79,2.23215321]
[1752145600098,0.96873098,670.4,669.79,2.23215321]
[1752145600401,0.96873098,670.39,669.8,2.23215321]
[1752145600700,0.96873098,670.38,669.8,2.23215321]
[1752145600903,0.96873098,670.37,669.8,2.23215321]
[1752145601099,0.96873098,670.36,669.81,2.23215321]
[1752145601402,0.96873098,670.44,669.81,2.23215321]
[1752145601600,0.96873098,670.43,669.81,2.23215321]
[1752145601798,0.96873098,670.42,669.81,2.23215321]
[1752145601999,0.96873098,670.41,669.81,2.23215321]
[1752145602199,0.96873098,670.4,669.81,2.23215321]
[1752145602403,0.96873098,670.39,669.81,2.23215321]
[1752145602603,1.67383296,670.45,669.81,2.23215321]
[1752145602604,0.96873098,670.38,669.81,2.23215321]
[1752145602798,0.96873098,670.37,669.81,2.23215321]
[1752145603002,0.96873098,670.36,669.81,2.23215321]
[1752145603204,2.64256394,670.44,669.82,2.23215321]
[1752145603501,0.96873098,670.43,669.82,2.23215321]
[1752145603703,0.96873098,670.42,669.82,2.23215321]
[1752145603904,0.96873098,670.41,669.82,2.23215321]
[1752145604202,0.96873098,670.4,669.82,2.23215321]
[1752145604405,0.96873098,670.39,669.82,2.23215321]
[1752145604604,0.96873098,670.38,669.82,2.23215321]
[1752145604805,0.96873098,670.37,669.82,2.23215321]
[1752145605006,0.96873098,670.36,669.82,2.23215321]
[1752145605300,0.96873098,670.43,669.82,2.23215321]
[1752145605506,0.96873098,670.42,669.83,2.23215321]
[1752145605703,0.96873098,670.41,669.83,2.23215321]
[1752145606006,0.96873098,670.4,669.83,2.23215321]
[1752145606207,0.96873098,670.39,669.83,2.23215321]
[1752145606502,0.96873098,670.38,669.83,2.23215321]
[1752145606802,0.96873098,670.37,669.83,2.23215321]
[1752145607003,0.96873098,670.36,669.83,2.23215321]
[1752145607206,0.96873098,670.42,669.84,2.23215321]
[1752145607402,0.96873098,670.41,669.84,2.23215321]
[1752145607601,0.96873098,670.4,669.84,2.23215321]
[1752145607806,0.96873098,670.39,669.84,2.23215321]
[1752145608006,0.96873098,670.42,669.76,2.23215321]
[1752145608207,0.96873098,670.41,669.76,2.23215321]
[1752145608406,0.96873098,670.4,669.76,2.23215321]
[1752145608605,0.96910414,670.39,669.76,2.23215321]
[1752145608814,0.96910414,670.45,669.76,2.23215321]
[1752145609010,0.96910414,670.44,669.76,2.23215321]
[1752145609214,0.96910414,670.43,669.76,2.23215321]
[1752145609412,0.96910414,670.43,669.36,0.2597771]
[1752145609413,0.96910414,670.42,669.72,2.23215321]
[1752145609614,0.96910414,670.41,669.72,2.23215321]
[1752145609814,0.96910414,670.47,669.72,2.23215321]
[1752145610013,0.96910414,670.46,669.72,2.23215321]
[1752145610218,0.96910414,670.45,669.72,2.23215321]
[1752145610517,0.96910414,670.44,669.72,2.23215321]
[1752145610716,0.96910414,670.43,669.72,2.23215321]
[1752145610914,0.96910414,670.42,669.72,2.23215321]
[1752145611113,0.96910414,670.41,669.72,2.23215321]
[1752145611315,2.6429371,670.47,669.71,2.23215321]
[1752145611517,0.96910414,670.46,669.71,2.23215321]
[1752145611713,0.96910414,670.45,669.71,2.23215321]
[1752145611918,0.96910414,670.44,669.71,2.23215321]
[1752145612117,0.96910414,670.43,669.71,2.23215321]
[1752145612413,0.96910414,670.42,669.71,2.23215321]
[1752145612617,0.96910414,670.41,669.71,2.23215321]
[1752145612816,0.96910414,670.46,669.71,2.23215321]
[1752145613018,1.67383296,670.47,669.71,2.23215321]
[1752145613019,0.96910414,670.45,669.71,2.23215321]
[1752145613219,0.96910414,670.44,669.72,2.23215321]
[1752145613420,0.96910414,670.43,669.72,2.23215321]
[1752145613618,0.96910414,670.42,669.72,2.23215321]
[1752145613818,0.96910414,670.41,669.72,2.23215321]
[1752145614017,0.96910414,670.46,669.72,2.23215321]
[1752145614220,0.96910414,670.45,669.71,2.23215321]
[1752145614418,0.96910414,670.44,669.71,2.23215321]
[1752145614621,0.96910414,670.43,669.71,2.23215321]
[1752145614819,0.96910414,670.42,669.71,2.23215321]
[1752145615118,0.96910414,670.41,669.71,2.23215321]
[1752145615318,0.96910414,670.4,669.71,2.23215321]
[1752145615518,0.96910414,670.46,669.71,2.23215321]
[1752145615719,0.96910414,670.45,669.7,2.23215321]
[1752145615919,0.96910414,670.44,669.7,2.23215321]
[1752145616122,1.67383296,670.47,669.7,2.23215321]
[1752145616123,0.96910414,670.43,669.7,2.23215321]
[1752145616422,0.96910414,670.42,669.71,2.23215321]
[1752145616622,0.96910414,670.41,669.71,2.23215321]
[1752145616822,0.96910414,670.4,669.71,2.23215321]
[1752145617020,0.96910414,670.46,669.71,2.23215321]
[1752145617219,0.96910414,670.45,669.71,2.23215321]
[1752145617524,0.96910414,670.44,669.7,2.23215321]
[1752145617722,0.96910414,670.43,669.7,2.23215321]
[1752145618019,0.96910414,670.42,669.73,2.23215321]
[1752145618222,0.96910414,670.41,669.73,2.23215321]
[1752145618424,0.96910414,670.4,669.73,2.23215321]
[1752145618624,0.96910414,670.39,669.73,2.23215321]
[1752145618824,1.67383296,670.46,669.73,2.23215321]
[1752145618825,0.96910414,670.45,669.73,2.23215321]
[1752145619027,0.96910414,670.44,669.73,2.23215321]
[1752145619323,0.96910414,670.43,669.77,2.23215321]
[1752145619527,0.96910414,670.42,669.77,2.23215321]
[1752145619728,0.96910414,670.41,669.77,2.23215321]
[1752145619924,0.96910414,670.4,669.77,2.23215321]
[1752145620124,0.96910414,670.39,669.77,2.23215321]
[1752145620327,0.96910414,670.38,669.77,2.23215321]
[1752145620527,0.96910414,670.37,669.78,2.23215321]
[1752145620725,0.96910414,670.43,669.78,2.23215321]
[1752145620930,0.96910414,670.42,669.78,2.23215321]
[1752145621129,0.96910414,670.41,669.77,2.23215321]
[1752145621329,0.96910414,670.4,669.77,2.23215321]
[1752145621529,0.96910414,670.39,669.77,2.23215321]
[1752145621730,0.96910414,670.38,669.78,2.23215321]
[1752145621929,0.96910414,670.37,669.78,2.23215321]
[1752145622130,0.96910414,670.36,669.78,2.23215321]
[1752145622331,2.6429371,670.43,669.79,2.23215321]
[1752145622528,0.96910414,670.42,669.79,2.23215321]
[1752145622827,0.96910414,670.41,669.79,2.23215321]
[1752145623031,0.96910414,670.4,669.79,2.23215321]
[1752145623229,0.96910414,670.39,669.79,2.23215321]
[1752145623431,0.96910414,670.38,669.79,2.23215321]
[1752145623630,0.96910414,670.37,669.79,2.23215321]
[1752145623828,0.96910414,670.36,669.79,2.23215321]
[1752145624033,0.96910414,670.42,669.79,2.23215321]
[1752145624329,0.96910414,670.41,669.8,2.23215321]
[1752145624632,0.96910414,670.4,669.8,2.23215321]
[1752145624834,0.96910414,670.39,669.79,2.23215321]
[1752145625129,0.96910414,670.38,669.8,2.23215321]
[1752145625331,0.96910414,670.37,669.8,2.23215321]
[1752145625531,0.96910414,670.36,669.8,2.23215321]
[1752145625831,0.96910414,670.35,669.8,2.23215321]
[1752145626029,0.96910414,670.42,669.8,2.23215321]
[1752145626229,0.96910414,670.41,669.8,2.23215321]
[1752145626431,0.96910414,670.4,669.8,2.23215321]
[1752145626630,0.96910414,670.39,669.8,2.23215321]
[1752145626836,0.96910414,670.38,669.8,2.23215321]
[1752145627035,0.96910414,670.37,669.78,2.23215321]
[1752145627234,0.96910414,670.36,669.78,2.23215321]
[1752145627435,0.96910414,670.43,669.78,2.23215321]
[1752145627735,0.96910414,670.42,669.78,2.23215321]
[1752145627932,0.96910414,670.41,669.78,2.23215321]
[1752145628134,0.96910414,670.4,669.78,2.23215321]
[1752145628332,0.96910414,670.39,669.78,2.23215321]
[1752145628631,0.96910414,670.38,669.78,2.23215321]
[1752145628831,0.96910414,670.37,669.78,2.23215321]
[1752145629135,0.96910414,670.36,669.77,2.23215321]
[1752145629431,0.96910414,670.43,669.77,2.23215321]
[1752145629735,0.96910414,670.42,669.77,2.23215321]
[1752145630035,0.96910414,670.41,669.77,2.23215321]
[1752145630331,0.96910414,670.4,669.77,2.23215321]
[1752145630632,0.96910414,670.39,669.77,2.23215321]
[1752145630832,0.96910414,670.38,669.78,2.23215321]
[1752145631035,0.96910414,670.37,669.78,2.23215321]
[1752145631230,0.96910414,670.36,669.78,2.23215321]
[1752145631435,0.96910414,670.35,669.78,2.23215321]
[1752145631632,0.96910414,670.42,669.78,2.23215321]
[1752145631935,0.96910414,670.41,669.78,2.23215321]
[1752145632133,0.96910414,670.4,669.78,2.23215321]
[1752145632334,0.96910414,670.39,669.76,2.23215321]
[1752145632532,0.96910414,670.38,669.76,2.23215321]
[1752145632731,0.96910414,670.37,669.76,2.23215321]
[1752145632936,0.96910414,670.43,669.73,2.23215321]
[1752145633132,0.96910414,670.42,669.73,2.23215321]
[1752145633337,0.96910414,670.41,669.73,2.23215321]
[1752145633535,0.96910414,670.4,669.73,2.23215321]
[1752145633831,0.96910414,670.39,669.73,2.23215321]
[1752145634030,0.96910414,670.38,669.73,2.23215321]
[1752145634235,0.96910414,670.37,669.73,2.23215321]
[1752145634433,0.96910414,670.44,669.73,2.23215321]
[1752145634637,0.96910414,670.43,669.74,2.23215321]
[1752145634833,0.96910414,670.42,669.74,2.23215321]
[1752145635038,0.96910414,670.41,669.74,2.23215321]
[1752145635233,0.96910414,670.4,669.74,2.23215321]
[1752145635433,1.67383296,670.45,669.74,2.23215321]
[1752145635434,0.96910414,670.39,669.74,2.23215321]
[1752145635634,0.96910414,670.38,669.74,2.23215321]
[1752145635839,0.96910414,670.37,669.74,2.23215321]
[1752145636038,0.96910414,670.36,669.74,2.23215321]
[1752145636236,0.96910414,670.44,669.74,2.23215321]
[1752145636540,1.67383296,670.45,669.74,2.23215321]
[1752145636541,0.96910414,670.43,669.74,2.23215321]
[1752145636743,0.96910414,670.42,669.76,2.23215321]
[1752145636937,0.96910414,670.41,669.76,2.23215321]
[1752145637138,0.96973881,670.4,669.76,2.23215321]
[1752145637338,0.96973881,670.39,669.76,2.23215321]
[1752145637538,1.67383296,670.44,669.76,2.23215321]
[1752145637539,0.96973881,670.38,669.76,2.23215321]
[1752145637741,0.96973881,670.37,669.76,2.23215321]
[1752145637942,0.96973881,670.36,669.76,2.23215321]
[1752145638143,0.96973881,670.35,669.76,2.23215321]
[1752145638342,0.96973881,670.43,669.76,2.23215321]
[1752145638637,0.96973881,670.42,669.76,2.23215321]
[1752145638839,0.96973881,670.41,669.76,2.23215321]
[1752145639043,0.96973881,670.4,669.77,2.23215321]
[1752145639242,0.96973881,670.39,669.77,2.23215321]
[1752145639442,0.96973881,670.38,669.78,2.23215321]
[1752145639641,0.96973881,670.37,669.78,2.23215321]
[1752145639838,0.96973881,670.36,669.78,2.23215321]
[1752145640139,0.96973881,670.35,669.78,2.23215321]
[1752145640439,0.96973881,670.34,669.78,2.23215321]
[1752145640640,0.96973881,670.43,669.78,2.23215321]
[1752145640840,0.96973881,670.42,669.78,2.23215321]
[1752145641039,0.96973881,670.41,669.78,2.23215321]
[1752145641241,0.96973881,670.4,669.78,2.23215321]
[1752145641439,0.96973881,670.39,669.78,2.23215321]
[1752145641741,0.96973881,670.38,669.77,2.23215321]
[1752145641946,0.96973881,670.37,669.73,2.23215321]
[1752145642241,0.96973881,670.36,669.74,2.23215321]
[1752145642440,0.96973881,670.35,669.75,2.23215321]
[1752145642641,0.96973881,670.44,669.75,2.23215321]
[1752145642844,0.96973881,670.43,669.77,2.23215321]
[1752145643041,0.96973881,670.42,669.77,2.23215321]
[1752145643241,0.96973881,670.41,669.78,2.23215321]
[1752145643446,0.96973881,670.4,669.78,2.23215321]
[1752145643642,0.96973881,670.39,669.78,2.23215321]
[1752145643847,0.96973881,670.38,669.78,2.23215321]
[1752145644047,0.96973881,670.37,669.78,2.23215321]
[1752145644246,0.96973881,670.36,669.78,2.23215321]
[1752145644444,0.96973881,670.35,669.78,2.23215321]
[1752145644644,0.96973881,670.34,669.78,2.23215321]
[1752145644848,0.96973881,670.33,669.79,2.23215321]
[1752145645046,0.96973881,670.32,669.79,3.22315321]
[1752145645243,0.96973881,670.42,669.79,3.22315321]
[1752145645446,0.96973881,670.41,669.79,3.22315321]
[1752145645645,0.96973881,670.4,669.79,3.22315321]
[1752145645848,0.96973881,670.39,669.79,3.22315321]
[1752145646047,0.96973881,670.38,669.79,3.22315321]
[1752145646347,0.96973881,670.37,669.79,3.22315321]
[1752145646549,0.96973881,670.36,669.79,3.22315321]
[1752145646748,0.96973881,670.35,669.79,3.22315321]
[1752145646947,0.96973881,670.34,669.79,3.22315321]
[1752145647251,0.96973881,670.33,669.79,3.22315321]
[1752145647447,0.96973881,670.32,669.79,3.22315321]
[1752145647648,0.96973881,670.41,669.79,3.22315321]
[1752145647849,0.96973881,670.4,669.79,0.991]
[1752145648051,0.96973881,670.39,669.79,0.991]
[1752145648248,0.96973881,670.38,669.79,0.991]
[1752145648452,0.96973881,670.37,669.79,0.991]
[1752145648652,0.96973881,670.36,669.79,0.991]
[1752145648851,0.96973881,670.35,669.79,0.991]
[1752145649051,0.96973881,670.34,669.79,0.991]
[1752145649349,0.96973881,670.43,669.79,0.991]
[1752145649551,0.96973881,670.42,669.79,0.991]
[1752145649853,0.96973881,670.41,669.79,0.991]
[1752145650048,0.96973881,670.4,669.79,0.991]
[1752145650352,0.96973881,670.39,669.79,0.991]
[1752145650551,0.96973881,670.38,669.79,0.991]
[1752145650848,0.96973881,670.37,669.79,0.991]
[1752145651051,0.96973881,670.36,669.79,0.991]
[1752145651250,0.96973881,670.35,669.79,0.991]
[1752145651452,0.96973881,670.34,669.79,0.991]
[1752145651650,0.96973881,670.43,669.79,0.991]
[1752145651849,0.96973881,670.42,669.79,0.991]
[1752145652052,0.96973881,670.41,669.79,0.991]
[1752145652253,0.96973881,670.4,669.79,0.991]
[1752145652449,0.96973881,670.39,669.79,0.991]
[1752145652649,0.96973881,670.38,669.79,0.991]
[1752145652951,0.96973881,670.37,669.79,0.991]
[1752145653154,0.96973881,670.36,669.79,0.991]
[1752145653449,0.96973881,670.35,669.79,0.991]
[1752145653651,0.96973881,670.34,669.79,0.991]
[1752145653954,0.96973881,670.33,669.79,0.991]
[1752145654153,0.96973881,670.32,669.79,0.991]
[1752145654355,0.96973881,670.42,669.79,0.991]
[1752145654556,0.96973881,670.41,669.79,0.991]
[1752145654850,0.96973881,670.4,669.79,0.991]
[1752145655058,0.96973881,670.39,669.79,0.991]
[1752145655349,1.67383296,670.43,669.79,0.991]
[1752145655350,0.96973881,670.38,669.79,0.991]
[1752145655555,0.96960892,670.37,669.79,0.991]
[1752145655854,0.96960892,670.36,669.79,0.991]
[1752145656055,0.96960892,670.35,669.79,0.991]
[1752145656351,0.96960892,670.34,669.79,0.991]
[1752145656550,0.96960892,670.33,669.79,0.991]
[1752145656756,0.96960892,670.43,669.79,0.991]
[1752145656950,0.96960892,670.42,669.79,0.991]
[1752145657150,0.96960892,670.41,669.79,0.991]
[1752145657352,0.96960892,670.4,669.79,0.991]
[1752145657553,0.96960892,670.39,669.79,0.991]
[1752145657759,0.96960892,670.38,669.8,2.23215321]
[1752145657952,0.96960892,670.37,669.8,2.23215321]
[1752145658157,0.96960892,670.42,669.8,2.23215321]
[1752145658358,0.96960892,670.41,669.85,2.23215321]
[1752145658652,0.96960892,670.4,669.85,2.23215321]
[1752145658853,0.96960892,670.39,669.85,2.23215321]
[1752145659052,0.96960892,670.38,669.85,2.23215321]
[1752145659353,0.96960892,670.47,669.84,2.23215321]
[1752145659556,0.96960892,670.46,669.84,2.23215321]
[1752145659852,0.96960892,670.45,669.84,2.23215321]
[1752145660051,0.96960892,670.44,669.85,2.23215321]
[1752145660356,0.96960892,670.43,669.84,2.23215321]
[1752145660556,0.96960892,670.42,669.84,2.23215321]
[1752145660757,0.96960892,670.41,669.85,2.23215321]
[1752145660952,0.96960892,670.4,669.85,2.23215321]
[1752145661156,0.96960892,670.47,669.85,2.23215321]
[1752145661351,0.96902982,670.46,669.85,2.23215321]
[1752145661556,0.96902982,670.45,669.85,2.23215321]
[1752145661757,0.96902982,670.44,669.85,2.23215321]
[1752145662057,0.96902982,670.43,669.85,2.23215321]
[1752145662256,0.96902982,670.42,669.84,2.23215321]
[1752145662453,0.96902982,670.41,669.86,2.23215321]
[1752145662759,0.96902982,670.4,669.86,2.23215321]
[1752145663052,1.67726683,670.53,669.79,0.991]
[1752145663257,1.67726683,670.54,669.79,0.991]
[1752145663754,1.67726683,670.56,669.79,3.22315321]
[1752145663953,1.67726683,670.56,669.79,0.991]
[1752145664159,1.67726683,670.57,669.79,0.991]
[1752145664957,1.67726683,670.57,669.77,2.23215321]
[1752145665266,1.67726683,670.57,669.76,2.23215321]
[1752145665564,1.67726683,670.94,670.06,2.23215321]
[1752145665866,1.67726683,671.08,670.19,2.23215321]
[1752145666262,0.25952428,671.13,670.11,2.23215321]
[1752145666762,1.93679111,671.13,670.07,2.23215321]
[1752145667366,0.25952428,671.13,670.01,2.23215321]
[1752145668264,0.25952428,671.13,670.02,1.667]
[1752145672369,1.67726683,671.09,670.04,2.23215321]
[1752145672967,1.67726683,671.11,670.02,1.667]
[1752145673167,1.67726683,671.12,670.02,1.667]
[1752145673372,1.67726683,671.11,670.02,1.667]
[1752145674474,1.67726683,671.1,670.02,1.667]
[1752145674877,1.67726683,671.08,670.02,1.667]
[1752145675275,0.25952428,671.13,670.02,1.667]
[1752145675276,1.67726683,671.1,670.02,1.667]
[1752145676577,1.67726683,671.11,670.02,1.667]